bitfinex/quotes_BTCUSD_20241117
["timestamp","ask_amount","ask_price","bid_price","bid_amount"]
[1731825735315,0.110217,90730.0,90723.0,0.00459319]
[1731825735546,0.220426,90733.0,90723.0,0.00459319]
[1731825735547,0.110213,90733.0,90723.0,0.00459319]
[1731825735793,0.110216,90731.0,90723.0,0.00459319]
[1731825736250,0.005,90735.0,90720.0,0.1]
[1731825736251,0.220426,90733.0,90724.0,0.00459379]
[1731825736506,0.110215,90732.0,90724.0,0.00459379]
[1731825736738,0.110215,90732.0,90720.0,0.04584809]
[1731825736965,0.110216,90731.0,90725.0,0.00438501]
[1731825737188,0.110217,90730.0,90710.0,0.29668]
[1731825737408,0.110217,90730.0,90718.0,0.16524829]
[1731825737648,0.110217,90730.0,90718.0,0.27431084]
[1731825737871,0.110215,90732.0,90719.0,0.00438622]
[1731825738095,0.220426,90733.0,90719.0,0.10438622]
[1731825738337,0.005,90735.0,90720.0,0.110228]
[1731825738575,0.005,90735.0,90720.0,0.0044019]
[1731825738817,0.110215,90732.0,90720.0,0.0044019]
[1731825739296,0.275317,90737.0,90725.0,0.110222]
[1731825739297,0.005,90737.0,90725.0,0.110222]
[1731825739511,0.005,90737.0,90728.0,0.110218]
[1731825739759,0.005,90737.0,90726.0,0.15601834]
[1731825739974,0.005,90737.0,90729.0,0.00440121]
[1731825740230,0.005,90737.0,90729.0,0.110218]
[1731825740462,0.005,90737.0,90730.0,0.00440091]
[1731825740904,0.005,90737.0,90731.0,0.00439978]
[1731825741181,0.115208,90737.0,90726.0,0.04139522]
[1731825741651,0.005,90737.0,90726.0,0.04139522]
[1731825741904,0.005,90737.0,90727.0,0.00440099]
[1731825742297,0.076,90738.0,90727.0,0.00440099]
[1731825742570,0.076,90738.0,90728.0,0.00440069]
[1731825743072,0.076,90738.0,90728.0,0.11461969]
[1731825743319,0.076,90738.0,90729.0,0.00440069]
[1731825743574,0.076,90738.0,90731.0,0.110215]
[1731825743764,0.076,90738.0,90730.0,0.00440038]
[1731825744018,0.076,90738.0,90732.0,0.00439978]
[1731825744250,0.005,90749.0,90731.0,0.0457953]
[1731825744500,0.270286,90750.0,90739.0,0.110205]
[1731825744501,0.005,90747.0,90739.0,0.110205]
[1731825744978,0.005,90747.0,90740.0,0.01696519]
[1731825745230,0.005,90747.0,90741.0,0.01256511]
[1731825745578,0.005,90747.0,90740.0,0.110204]
[1731825746012,0.079,90749.0,90743.0,0.1102]
[1731825746019,0.079,90749.0,90741.0,0.01256425]
[1731825746020,0.0499,90757.0,90741.0,0.02040794]
[1731825746237,0.0499,90757.0,90744.0,0.11459847]
[1731825746461,0.110186,90755.0,90745.0,0.01600816]
[1731825746702,0.0499,90757.0,90745.0,0.01600816]
[1731825746703,0.0499,90757.0,90746.0,0.01600816]
[1731825746957,0.110187,90755.0,90747.0,0.00344364]
[1731825747215,0.270269,90757.0,90748.0,0.00344364]
[1731825747478,0.220371,90756.0,90749.0,0.00344364]
[1731825747703,0.0499,90757.0,90750.0,0.00344364]
[1731825747704,0.220375,90754.0,90750.0,0.00344364]
[1731825747934,0.0499,90757.0,90728.0,0.225438]
[1731825748164,0.0499,90757.0,90726.0,0.1216]
[1731825748165,0.220388,90749.0,90740.0,0.16524829]
[1731825748410,0.0469,90751.0,90740.0,0.16524829]
[1731825748411,0.110203,90742.0,90741.0,0.00344365]
[1731825748916,0.110203,90742.0,90741.0,0.00344379]
[1731825749132,0.110202,90743.0,90741.0,0.00344379]
[1731825749365,0.110202,90743.0,90742.0,0.00344379]
[1731825749816,0.185399,90745.0,90742.0,0.00344379]
[1731825750031,0.185399,90745.0,90743.0,0.00344379]
[1731825750255,0.185399,90745.0,90733.0,0.16524829]
[1731825750256,0.0752,90745.0,90733.0,0.16524829]
[1731825750995,0.0752,90745.0,90728.0,0.1]
[1731825751265,0.0752,90745.0,90732.0,0.1]
[1731825751917,0.110202,90743.0,90732.0,0.1]
[1731825752356,0.0752,90745.0,90731.0,0.210215]
[1731825752357,0.1102,90744.0,90731.0,0.210215]
[1731825752590,0.110201,90743.0,90731.0,0.1]
[1731825752838,0.0752,90745.0,90731.0,0.1]
[1731825752839,0.0747,90745.0,90731.0,0.1]
[1731825753354,0.110201,90743.0,90731.0,0.1]
[1731825753888,0.184899,90745.0,90732.0,0.110214]
[1731825754327,0.0747,90745.0,90733.0,0.220426]
[1731825754571,0.0747,90745.0,90731.0,0.1]
[1731825754798,0.110201,90743.0,90731.0,0.1]
[1731825755284,0.110202,90743.0,90731.0,0.1]
[1731825755732,0.0747,90745.0,90731.0,0.1]
[1731825755781,0.110202,90743.0,90731.0,0.1]
[1731825756209,0.184899,90745.0,90731.0,0.1]
[1731825756471,0.184899,90745.0,90732.0,0.110213]
[1731825756714,0.110201,90744.0,90731.0,0.2119238]
[1731825757205,0.102201,90744.0,90732.0,0.00783468]
[1731825757422,0.184899,90745.0,90733.0,0.00344375]
[1731825757638,0.184899,90745.0,90734.0,0.00344375]
[1731825757860,0.110207,90738.0,90735.0,0.00344375]
[1731825758092,0.2204,90744.0,90736.0,0.00344375]
[1731825758093,0.220401,90744.0,90736.0,0.00344375]
[1731825758354,0.0747,90745.0,90737.0,0.00344375]
[1731825758632,0.0747,90745.0,90738.0,0.00344375]
[1731825759151,0.0747,90745.0,90739.0,0.007838]
[1731825759364,0.1102,90744.0,90740.0,0.00344376]
[1731825759538,0.1102,90744.0,90741.0,0.00344376]
[1731825759756,0.0747,90745.0,90731.0,0.1017098]
[1731825759757,0.0747,90745.0,90742.0,0.00344376]
[1731825759980,0.0747,90745.0,90733.0,0.110212]
[1731825759981,0.0747,90745.0,90743.0,0.00344376]
[1731825760268,0.184899,90745.0,90744.0,0.00344376]
[1731825760515,0.229899,90745.0,90744.0,0.00344376]
[1731825761399,0.220404,90743.0,90731.0,0.0017098]
[1731825761628,0.110205,90740.0,90736.0,0.16524829]
[1731825761849,0.110205,90740.0,90731.0,0.0017098]
[1731825761850,0.110205,90740.0,90732.0,0.00377661]
[1731825762100,0.110205,90740.0,90737.0,0.00377456]
[1731825762522,0.1197,90745.0,90731.0,0.04580537]
[1731825762523,0.340099,90745.0,90731.0,0.04580537]
[1731825762588,0.110205,90740.0,90731.0,0.0017098]
[1731825762822,0.110205,90740.0,90732.0,0.00377712]
[1731825763074,0.110204,90741.0,90732.0,0.00377712]
[1731825763297,0.1197,90745.0,90732.0,0.00377712]
[1731825763536,0.1197,90745.0,90731.0,0.0017098]
[1731825763753,0.110206,90739.0,90733.0,0.00377584]
[1731825763979,0.110204,90741.0,90732.0,0.00377712]
[1731825764258,0.110202,90742.0,90731.0,0.0017098]
[1731825764502,0.110202,90742.0,90733.0,0.00377584]
[1731825764741,0.110202,90742.0,90731.0,0.0017098]
[1731825764742,0.220402,90743.0,90732.0,0.00377636]
[1731825764976,0.220402,90743.0,90731.0,0.0017098]
[1731825765199,0.110204,90741.0,90733.0,0.00377636]
[1731825765423,0.220402,90743.0,90731.0,0.0017098]
[1731825765424,0.220402,90743.0,90732.0,0.00377661]
[1731825765640,0.1197,90745.0,90731.0,0.0017098]
[1731825765641,0.110211,90735.0,90734.0,0.00377559]
[1731825765916,0.110214,90732.0,90731.0,0.0017098]
[1731825766107,0.185414,90732.0,90731.0,0.0017098]
[1731825772175,0.177414,90732.0,90731.0,0.0017098]
[1731825776809,0.179414,90732.0,90731.0,0.0017098]
[1731825777886,0.177414,90732.0,90731.0,0.0017098]
[1731825779092,0.102214,90732.0,90731.0,0.0017098]
[1731825781166,0.20438235,90732.0,90731.0,0.0017098]
[1731825782597,0.3604449,90732.0,90731.0,0.0017098]
[1731825782802,0.4393449,90732.0,90731.0,0.0017098]
[1731825785824,0.48503918,90732.0,90731.0,0.0017098]
[1731825787246,0.47703918,90732.0,90731.0,0.0017098]
[1731825791294,0.48203918,90732.0,90731.0,0.0017098]
[1731825791484,0.48703918,90732.0,90731.0,0.0017098]
[1731825793793,0.48789418,90732.0,90731.0,0.0017098]
[1731825796807,0.68806253,90732.0,90731.0,0.0017098]
[1731825797009,0.68806253,90732.0,90731.0,8e-07]
[1731825797530,0.64873305,90721.0,90720.0,2e-07]
[1731825797726,1.20252725,90721.0,90720.0,2e-07]
[1731825802234,1.19452725,90721.0,90720.0,2e-07]
[1731825804315,1.23901405,90721.0,90720.0,2e-07]
[1731825804581,1.26141856,90721.0,90720.0,2e-07]
[1731825805737,1.26227476,90721.0,90720.0,2e-07]
[1731825808501,1.03610641,90721.0,90720.0,2e-07]
[1731825808745,1.0137019,90721.0,90720.0,2e-07]
[1731825809718,1.11387025,90721.0,90720.0,2e-07]
[1731825810147,1.0137019,90721.0,90720.0,2e-07]
[1731825810380,1.11387025,90721.0,90720.0,2e-07]
[1731825814249,0.56897025,90721.0,90720.0,2e-07]
[1731825816972,0.56897025,90721.0,90681.0,0.01175256]
[1731825816973,0.002,90707.0,90681.0,0.01175256]
[1731825817027,0.110265,90691.0,90682.0,0.12284103]
[1731825817246,0.102265,90691.0,90683.0,0.01601169]
[1731825817463,0.102265,90691.0,90684.0,0.01601169]
[1731825817674,0.11106255,90707.0,90685.0,0.01601169]
[1731825817892,0.110258,90697.0,90686.0,0.01601169]
[1731825818142,0.110258,90697.0,90687.0,0.01601169]
[1731825818357,0.110258,90697.0,90686.0,0.0038702]
[1731825818358,0.110258,90697.0,90688.0,0.01601169]
[1731825818584,0.110258,90697.0,90689.0,0.01257084]
[1731825818800,0.110258,90697.0,90690.0,0.0160165]
[1731825818986,0.220508,90700.0,90690.0,0.0160165]
[1731825818987,0.220508,90700.0,90691.0,0.0160165]
[1731825819207,0.220508,90700.0,90690.0,0.00386707]
[1731825819208,0.110259,90696.0,90692.0,0.0160165]
[1731825819434,0.110259,90696.0,90693.0,0.0160165]
[1731825819938,0.110259,90696.0,90694.0,0.14331836]
[1731825820142,0.110259,90696.0,90695.0,0.01601836]
[1731825820351,0.110259,90696.0,90695.0,0.01988412]
[1731825821305,0.002,90722.0,90696.0,0.1273]
[1731825821525,0.16524829,90707.0,90699.0,0.0455]
[1731825821733,0.16524829,90707.0,90701.0,0.0455]
[1731825821734,0.09637738,90707.0,90701.0,0.0455]
[1731825821956,0.220482,90711.0,90702.0,0.10168525]
[1731825822185,0.16524829,90718.0,90702.0,0.10168525]
[1731825822186,0.220482,90710.0,90703.0,0.01601836]
[1731825822408,0.220485,90709.0,90704.0,0.01601836]
[1731825822639,0.220485,90709.0,90705.0,0.01601836]
[1731825822640,0.110245,90707.0,90705.0,0.01601836]
[1731825822907,0.110245,90707.0,90706.0,0.01601836]
[1731825823242,0.110243,90709.0,90706.0,0.01988496]
[1731825823375,0.10906255,90717.0,90707.0,0.0160191]
[1731825823610,0.10906255,90717.0,90706.0,0.00386586]
[1731825823858,0.10906255,90717.0,90702.0,0.0818]
[1731825823859,0.110244,90708.0,90707.0,0.01601932]
[1731825824308,0.110244,90708.0,90707.0,0.01988518]
[1731825824533,0.0008562,90721.0,90707.0,0.01988518]
[1731825824768,0.0008562,90721.0,90708.0,0.06151932]
[1731825825030,0.0008562,90721.0,90720.0,0.110229]
[1731825825247,0.0008562,90721.0,90720.0,0.12624832]
[1731825825465,0.0008562,90721.0,90720.0,0.25739759]
[1731825826402,0.0008562,90721.0,90720.0,0.24137827]
[1731825826409,0.0008562,90721.0,90720.0,0.25738403]
[1731825826905,0.0008562,90721.0,90720.0,0.28298065]
[1731825827099,0.0008562,90721.0,90720.0,0.28298059]
[1731825829697,0.0008562,90721.0,90720.0,0.24137827]
[1731825829766,0.0008562,90721.0,90720.0,0.2829212]
[1731825832173,0.16524829,90730.0,90729.0,0.110218]
[1731825832174,0.15810449,90730.0,90729.0,0.110218]
[1731825832410,0.000855,90732.0,90731.0,0.110215]
[1731825832642,0.000855,90732.0,90731.0,0.20939268]
[1731825833237,0.000855,90732.0,90731.0,0.21321895]
[1731825833337,0.000855,90732.0,90731.0,0.10300395]
[1731825834262,0.000855,90732.0,90731.0,0.09047049]
[1731825834491,0.000855,90732.0,90731.0,0.09047048]
[1731825834957,0.000855,90732.0,90731.0,0.20068548]
[1731825835447,0.000855,90732.0,90731.0,0.24808548]
[1731825835929,0.000855,90732.0,90731.0,0.26060393]
[1731825836416,0.000855,90732.0,90731.0,0.24808548]
[1731825836608,0.000855,90732.0,90731.0,0.15038835]
[1731825836897,0.000855,90732.0,90731.0,0.24808548]
[1731825837092,0.000855,90732.0,90731.0,0.36077177]
[1731825837378,0.000855,90732.0,90731.0,0.57821411]
[1731825837606,0.000855,90732.0,90731.0,0.68727666]
[1731825837858,0.000855,90732.0,90731.0,0.78554767]
[1731825838107,0.0008549,90745.0,90731.0,0.54453116]
[1731825838584,0.0008549,90745.0,90744.0,0.1102]
[1731825838670,0.0008549,90745.0,90744.0,0.24458707]
[1731825838876,0.0008549,90745.0,90744.0,0.35425588]
[1731825839147,0.0008549,90745.0,90744.0,0.35205215]
[1731825839831,0.0008549,90745.0,90744.0,0.5032002]
[1731825841906,0.0008549,90745.0,90744.0,0.5082002]
[1731825842033,0.0008549,90745.0,90744.0,0.6062012]
[1731825842234,9.376e-05,90764.0,90763.0,0.110177]
[1731825842455,9.376e-05,90764.0,90763.0,0.12612386]
[1731825842921,9.376e-05,90764.0,90763.0,0.01973393]
[1731825843424,9.376e-05,90764.0,90763.0,0.12991093]
[1731825843651,0.11026876,90764.0,90763.0,0.01973393]
[1731825844159,0.11026876,90764.0,90763.0,0.01594686]
[1731825845297,0.11026876,90764.0,90763.0,0.01594653]
[1731825845575,0.11026876,90764.0,90763.0,0.01246919]
[1731825846044,0.110177,90763.0,90755.0,0.110186]
[1731825846280,0.110179,90761.0,90754.0,0.0832]
[1731825846567,0.110181,90760.0,90756.0,0.00376083]
[1731825846824,0.110181,90760.0,90755.0,0.00376057]
[1731825847116,0.110181,90760.0,90754.0,0.0832]
[1731825847347,0.102186,90755.0,90754.0,0.0832]
[1731825847589,9.376e-05,90764.0,90735.0,0.0468]
[1731825847590,0.0988,90757.0,90736.0,0.0822]
[1731825847824,0.110193,90750.0,90749.0,0.16524829]
[1731825848052,0.0988,90757.0,90736.0,0.0822]
[1731825848053,0.023,90757.0,90736.0,0.0822]
[1731825848329,0.023,90761.0,90740.0,0.16524829]
[1731825848526,0.220368,90757.0,90742.0,0.110201]
[1731825848740,0.110191,90752.0,90740.0,0.27545129]
[1731825848979,0.023,90758.0,90741.0,0.110203]
[1731825849227,0.023,90756.0,90741.0,0.110203]
[1731825849425,0.023,90758.0,90741.0,0.21037135]
[1731825849426,0.110192,90751.0,90741.0,0.21037135]
[1731825849903,0.110193,90750.0,90741.0,0.10016835]
[1731825850598,0.110194,90749.0,90741.0,0.10016835]
[1731825851294,0.110192,90751.0,90741.0,0.10016835]
[1731825851835,0.023,90756.0,90741.0,0.21037135]
[1731825852007,0.243366,90758.0,90741.0,0.21037135]
[1731825852008,0.023,90753.0,90741.0,0.21037135]
[1731825852218,0.023,90753.0,90742.0,0.110202]
[1731825852941,0.11019,90752.0,90741.0,0.21037135]
[1731825853181,0.110191,90751.0,90741.0,0.21037135]
[1731825853414,0.110193,90750.0,90741.0,0.10016835]
[1731825853649,0.110196,90748.0,90741.0,0.0017118]
[1731825853889,0.220388,90749.0,90741.0,0.0017118]
[1731825854116,0.110195,90748.0,90741.0,0.0017118]
[1731825854615,0.220379,90753.0,90741.0,0.0017118]
[1731825854995,0.0008559,90756.0,90742.0,0.00375253]
[1731825855515,0.220378,90753.0,90742.0,0.00375253]
[1731825855640,0.220378,90753.0,90743.0,0.00375356]
[1731825855641,0.22038,90752.0,90743.0,0.00375356]
[1731825855876,0.1102,90744.0,90743.0,0.00375356]
[1731825856088,0.110202,90742.0,90741.0,0.0017118]
[1731825857054,0.110202,90742.0,90741.0,0.02175341]
[1731825857302,0.08540751,90742.0,90741.0,0.02175341]
[1731825857548,0.08540751,90742.0,90741.0,0.03772417]
[1731825858005,0.08540751,90742.0,90741.0,0.03428046]
[1731825858420,0.08540751,90742.0,90741.0,0.03772419]
[1731825858565,0.0483,90750.0,90741.0,0.03772419]
[1731825858760,0.220385,90750.0,90735.0,0.02004624]
[1731825859000,0.079,90757.0,90741.0,0.110202]
[1731825859220,0.110191,90752.0,90742.0,0.110202]
[1731825859441,0.2212269,90756.0,90742.0,0.0037672]
[1731825859659,0.110192,90751.0,90742.0,0.0037672]
[1731825859896,0.0008559,90756.0,90745.0,0.16524829]
[1731825860120,0.0008559,90756.0,90745.0,0.110198]
[1731825860121,0.110187,90755.0,90745.0,0.110198]
[1731825860339,0.110186,90755.0,90746.0,0.00376617]
[1731825860556,0.330564,90754.0,90746.0,0.00376617]
[1731825860794,0.330564,90754.0,90744.0,0.10016835]
[1731825860795,0.11019,90753.0,90747.0,0.0037654]
[1731825861262,0.11019,90753.0,90744.0,0.10016835]
[1731825861510,0.110186,90755.0,90748.0,0.00376489]
[1731825861688,0.110191,90752.0,90745.0,0.04186947]
[1731825861946,0.0008559,90756.0,90749.0,0.00376515]
[1731825862156,0.0008559,90756.0,90746.0,0.16524829]
[1731825862157,0.1030399,90757.0,90745.0,0.26226647]
[1731825862389,0.1030399,90757.0,90750.0,0.00376515]
[1731825862634,9.316e-05,90760.0,90746.0,0.11396243]
[1731825862846,0.11019,90752.0,90751.0,0.00376515]
[1731825863068,0.220363,90759.0,90733.0,0.220426]
[1731825863069,0.220363,90759.0,90743.0,0.1102]
[1731825863323,9.316e-05,90760.0,90744.0,0.16524829]
[1731825863324,0.110188,90754.0,90744.0,0.16524829]
[1731825863540,0.110188,90754.0,90746.0,0.110197]
[1731825863992,9.316e-05,90760.0,90753.0,0.10016835]
[1731825864214,9.316e-05,90760.0,90750.0,0.220385]
[1731825864443,9.316e-05,90760.0,90748.0,0.1241]
[1731825864444,9.316e-05,90760.0,90754.0,0.00375753]
[1731825864685,9.316e-05,90760.0,90753.0,0.110189]
[1731825864953,9.316e-05,90760.0,90749.0,0.220388]
[1731825864954,0.11027416,90760.0,90755.0,0.00375727]
[1731825865342,9.316e-05,90760.0,90755.0,0.110185]
[1731825865442,9.316e-05,90760.0,90748.0,0.1241]
[1731825865443,9.316e-05,90760.0,90756.0,0.00375658]
[1731825865666,0.110182,90759.0,90756.0,0.00375658]
[1731825865883,9.316e-05,90760.0,90755.0,0.110186]
[1731825866109,9.316e-05,90760.0,90757.0,0.00375174]
[1731825866338,9.316e-05,90760.0,90756.0,0.00375176]
[1731825866574,9.316e-05,90760.0,90758.0,0.00375072]
[1731825866791,9.316e-05,90760.0,90757.0,0.00375097]
[1731825867054,9.316e-05,90760.0,90759.0,0.10391881]
[1731825867264,9.316e-05,90760.0,90759.0,0.110181]
[1731825867481,9.316e-05,90760.0,90759.0,0.00375046]
[1731825867724,9.316e-05,90760.0,90759.0,0.11393146]
[1731825867962,9.316e-05,90760.0,90759.0,0.110181]
[1731825868417,9.316e-05,90760.0,90759.0,0.16183076]
[1731825868626,9.316e-05,90760.0,90759.0,0.23943076]
[1731825868819,0.16524829,90775.0,90759.0,0.14907216]
[1731825868820,0.11017,90769.0,90759.0,0.14907216]
[1731825869075,0.11017,90769.0,90761.0,0.110179]
[1731825869300,0.11017,90769.0,90768.0,0.01982205]
[1731825869530,0.11017,90769.0,90759.0,0.1255]
[1731825869531,0.11017,90769.0,90764.0,0.0198209]
[1731825869778,0.11017,90769.0,90764.0,0.00089601]
[1731825869997,0.38557329,90775.0,90764.0,0.00089601]
[1731825869998,0.38557329,90775.0,90765.0,0.00358175]
[1731825870239,0.110173,90766.0,90765.0,0.00358175]
[1731825870691,0.110173,90766.0,90759.0,0.0776]
[1731825870692,0.110173,90766.0,90762.0,0.00089601]
[1731825870939,0.11017,90769.0,90765.0,0.00358098]
[1731825871176,0.11017,90769.0,90766.0,0.0158289]
[1731825871409,0.11017,90769.0,90767.0,0.0158289]
[1731825871658,0.11017,90769.0,90768.0,0.01238477]
[1731825871851,0.11017,90769.0,90768.0,0.0194081]
[1731825872083,0.11017,90769.0,90768.0,0.01582766]
[1731825872540,0.11017,90769.0,90768.0,0.01940777]
[1731825874180,0.220332,90772.0,90768.0,0.01582766]
[1731825874415,0.110169,90770.0,90769.0,0.01582766]
[1731825875308,0.110169,90770.0,90769.0,0.01582763]
[1731825875550,0.110169,90770.0,90759.0,0.17573148]
[1731825875786,0.110169,90770.0,90760.0,0.31244551]
[1731825876037,0.38556929,90777.0,90760.0,0.31244551]
[1731825876038,0.023,90776.0,90760.0,0.00430602]
[1731825876270,0.13206255,90776.0,90760.0,0.00430602]
[1731825876711,0.22033,90773.0,90760.0,0.00430602]
[1731825876926,0.22033,90773.0,90762.0,0.110177]
[1731825877187,0.10217,90769.0,90762.0,0.110177]
[1731825877404,0.10217,90769.0,90763.0,0.00430602]
[1731825877854,0.220327,90774.0,90763.0,0.00430602]
[1731825878306,0.110167,90772.0,90765.0,0.110174]
[1731825878759,0.266818,90778.0,90765.0,0.110174]
[1731825878760,0.0465,90778.0,90766.0,0.00430469]
[1731825879412,0.0465,90778.0,90761.0,0.0017116]
[1731825879633,0.0465,90778.0,90767.0,0.00430635]
[1731825879634,0.18135365,90775.0,90767.0,0.00430635]
[1731825879846,0.18135365,90775.0,90768.0,0.01980898]
[1731825879847,0.110162,90775.0,90768.0,0.01980898]
[1731825880078,0.0465,90778.0,90769.0,0.01980898]
[1731825880079,0.110164,90774.0,90769.0,0.01980898]
[1731825880317,0.110164,90774.0,90769.0,0.00430469]
[1731825880577,0.110165,90773.0,90769.0,0.00430469]
[1731825881005,0.0465,90778.0,90767.0,0.01980898]
[1731825881006,0.110166,90772.0,90767.0,0.01980898]
[1731825881222,0.110166,90772.0,90768.0,0.01980898]
[1731825881542,0.110166,90772.0,90768.0,0.00430084]
[1731825881645,0.06441102,90770.0,90766.0,0.01980839]
[1731825881888,0.110166,90772.0,90769.0,0.00430081]
[1731825882105,0.110164,90774.0,90765.0,0.110173]
[1731825882312,0.110164,90774.0,90765.0,0.01980839]
[1731825882522,0.110165,90773.0,90766.0,0.11447548]
[1731825882743,0.0465,90778.0,90762.0,0.17213388]
[1731825882744,0.0465,90778.0,90767.0,0.01633049]
[1731825882953,0.220322,90776.0,90767.0,0.00408578]
[1731825883185,0.0465,90778.0,90767.0,0.00408578]
[1731825883186,0.22032,90777.0,90767.0,0.11425678]
[1731825883426,0.0465,90778.0,90772.0,0.16524829]
[1731825883641,0.186758,90779.0,90771.0,0.110166]
[1731825883862,0.186758,90779.0,90773.0,0.00408545]
[1731825883863,0.0766,90779.0,90773.0,0.00408545]
[1731825884078,0.186757,90779.0,90772.0,0.11425111]
[1731825884302,0.186757,90779.0,90774.0,0.00408545]
[1731825884611,0.0766,90779.0,90773.0,0.00408578]
[1731825884814,0.0766,90779.0,90775.0,0.00408511]
[1731825884815,0.110161,90777.0,90775.0,0.00408511]
[1731825885075,0.110161,90777.0,90774.0,0.00408545]
[1731825885260,0.110161,90777.0,90770.0,0.110168]
[1731825885503,0.110161,90777.0,90775.0,0.00408445]
[1731825885747,0.110161,90777.0,90770.0,0.110168]
[1731825885748,0.0766,90779.0,90769.0,0.220339]
[1731825886011,0.186758,90779.0,90776.0,0.00431099]
[1731825886242,0.0766,90779.0,90772.0,0.110165]
[1731825886469,0.0766,90779.0,90777.0,0.00431136]
[1731825886722,0.0766,90779.0,90768.0,0.22722529]
[1731825886723,0.0766,90779.0,90771.0,0.110166]
[1731825886933,7e-05,90781.0,90778.0,0.00431099]
[1731825887161,7e-05,90781.0,90774.0,0.110162]
[1731825887375,7e-05,90781.0,90779.0,0.00388022]
[1731825887611,7e-05,90781.0,90780.0,0.01574147]
[1731825887864,0.110225,90781.0,90780.0,0.01574147]
[1731825888289,7e-05,90781.0,90780.0,0.01574147]
[1731825888816,7e-05,90781.0,90770.0,0.12316835]
[1731825889039,7e-05,90781.0,90772.0,0.110165]
[1731825889279,7e-05,90781.0,90772.0,0.22033]
[1731825889511,7e-05,90781.0,90773.0,0.11447758]
[1731825889725,7e-05,90781.0,90767.0,0.42976529]
[1731825889726,7e-05,90781.0,90767.0,0.30959164]
[1731825889954,7e-05,90781.0,90774.0,0.00384724]
[1731825890157,7e-05,90781.0,90771.0,0.0017114]
[1731825890379,7e-05,90781.0,90775.0,0.00384687]
[1731825890596,7e-05,90781.0,90771.0,0.0017114]
[1731825890597,7e-05,90781.0,90771.0,0.1118774]
[1731825890830,7e-05,90781.0,90773.0,0.110163]
[1731825891305,7e-05,90781.0,90774.0,0.00384724]
[1731825891950,7e-05,90781.0,90772.0,0.10016835]
[1731825892203,0.110155,90781.0,90775.0,0.00384687]
[1731825892474,0.110155,90781.0,90772.0,0.10016835]
[1731825892685,0.11016,90777.0,90776.0,0.0038465]
[1731825892918,0.11016,90777.0,90776.0,0.01969584]
[1731825893146,0.110159,90778.0,90776.0,0.01969584]
[1731825893371,0.110159,90778.0,90777.0,0.01969584]
[1731825893372,0.110158,90778.0,90777.0,0.01969584]
[1731825894254,0.22031,90782.0,90771.0,0.0017114]
[1731825894496,0.220305,90783.0,90777.0,0.01970344]
[1731825894497,0.110158,90778.0,90777.0,0.01970344]
[1731825894713,0.110163,90774.0,90771.0,0.0017114]
[1731825894982,0.0755,90785.0,90771.0,0.0017114]
[1731825894983,0.110165,90773.0,90772.0,0.01970306]
[1731825895180,0.005,90784.0,90772.0,0.02354845]
[1731825895393,0.0755,90785.0,90773.0,0.01970306]
[1731825895654,0.110165,90773.0,90771.0,0.0017114]
[1731825895877,0.0755,90785.0,90772.0,0.01970546]
[1731825896084,0.110164,90774.0,90773.0,0.01970546]
[1731825896750,0.191464,90774.0,90773.0,0.01970546]
[1731825897675,0.110166,90772.0,90771.0,0.0017114]
[1731825897845,0.110166,90772.0,90771.0,0.02142717]
[1731825898655,0.110166,90772.0,90771.0,0.0017114]
[1731825898784,0.110166,90772.0,90771.0,0.02142649]
[1731825898935,0.110166,90772.0,90771.0,0.02693492]
[1731825899603,0.110166,90772.0,90771.0,0.05158001]
[1731825900741,0.159766,90772.0,90771.0,0.05839317]
[1731825900928,0.159766,90772.0,90771.0,0.06734446]
[1731825901135,0.110166,90772.0,90771.0,0.06734446]
[1731825901554,0.301629,90774.0,90762.0,0.02463335]
[1731825901555,0.0813,90774.0,90762.0,0.02463335]
[1731825901556,0.110177,90763.0,90762.0,0.02463335]
[1731825901945,0.110177,90763.0,90762.0,0.02846239]
[1731825902175,0.220351,90765.0,90748.0,0.0797]
[1731825902176,0.110182,90759.0,90748.0,0.0797]
[1731825902390,0.110182,90759.0,90755.0,0.16524829]
[1731825902581,0.110182,90759.0,90752.0,0.00383126]
[1731825902899,0.110182,90759.0,90751.0,0.09024671]
[1731825902900,0.16524829,90770.0,90751.0,0.09024671]
[1731825903143,0.11018,90760.0,90753.0,0.00383089]
[1731825903364,0.11018,90760.0,90752.0,0.00383533]
[1731825903592,0.220355,90763.0,90751.0,0.09024671]
[1731825903593,0.110182,90759.0,90757.0,0.16524829]
[1731825903818,0.16524829,90771.0,90756.0,0.10016835]
[1731825904042,0.110174,90766.0,90758.0,0.00382904]
[1731825904270,0.0008558,90763.0,90756.0,0.10187995]
[1731825904495,0.0008558,90763.0,90759.0,0.00383924]
[1731825904699,0.0008558,90763.0,90757.0,0.110184]
[1731825904947,0.0008558,90763.0,90760.0,0.00383776]
[1731825905202,0.0008558,90763.0,90758.0,0.110182]
[1731825905410,0.0008558,90763.0,90761.0,0.00383739]
[1731825905626,0.0008558,90763.0,90756.0,0.10187995]
[1731825905898,0.0008558,90763.0,90762.0,0.00383702]
[1731825906281,0.0008558,90763.0,90756.0,0.0017116]
[1731825906409,0.0008558,90763.0,90762.0,0.00383533]
[1731825906548,0.0008558,90763.0,90756.0,0.0017116]
[1731825906748,0.0008558,90763.0,90762.0,0.00383533]
[1731825906960,0.0008558,90763.0,90756.0,0.0017116]
[1731825907190,0.0997271,90797.0,90763.0,0.1295]
[1731825907191,0.16524829,90779.0,90763.0,0.1295]
[1731825907452,0.110165,90773.0,90763.0,0.239676]
[1731825907663,0.110161,90776.0,90765.0,0.110174]
[1731825907880,0.110165,90773.0,90764.0,0.00383942]
[1731825908099,0.110161,90776.0,90766.0,0.00383757]
[1731825908309,0.16524829,90779.0,90765.0,0.00383683]
[1731825908519,0.16524829,90779.0,90763.0,0.1295]
[1731825908520,0.110168,90771.0,90767.0,0.0038372]
[1731825908732,0.110168,90771.0,90766.0,0.00383868]
[1731825908981,0.110168,90771.0,90768.0,0.00383498]
[1731825909176,0.110168,90771.0,90767.0,0.00383535]
[1731825909395,0.110168,90771.0,90769.0,0.00383461]
[1731825909797,0.110169,90769.0,90768.0,0.00383498]
[1731825909918,0.220307,90782.0,90763.0,0.1295]
[1731825910120,0.220322,90776.0,90763.0,0.0474]
[1731825910344,0.220322,90776.0,90756.0,0.33022514]
[1731825910345,0.110173,90766.0,90764.0,0.00383872]